bitfinex/quotes_ETHUSD_20240702
["timestamp","ask_amount","ask_price","bid_price","bid_amount"]
[1719903436953,2.89794,3450.8,3450.3,0.57118266]
[1719903437151,2.89794,3450.8,3450.5,0.07929068]
[1719903437354,2.89794,3450.8,3450.2,3.2407]
[1719903437651,2.89794,3450.8,3450.6,0.07929068]
[1719903437861,2.89794,3450.8,3450.2,3.2407]
[1719903438073,2.89794,3450.8,3450.7,0.07929068]
[1719903438245,2.89797,3450.7,3450.2,4.454467]
[1719903440176,2.89806,3450.6,3450.3,0.07929068]
[1719903440355,2.89823,3450.4,3450.2,3.632467]
[1719903440548,2.89823,3450.4,3450.2,2.4187]
[1719903440976,2.89823,3450.4,3450.0,3.3008]
[1719903443273,2.89823,3450.4,3450.0,2.4788]
[1719903443451,2.8983,3450.3,3450.0,2.4788]
[1719903444578,2.89846,3450.1,3450.0,0.1]
[1719903454446,2.89846,3450.1,3450.0,0.17957409]
[1719903459271,2.89831,3450.3,3450.0,0.17957409]
[1719903459575,2.89838,3450.2,3450.0,0.17957409]
[1719903459907,2.89846,3450.1,3450.0,0.17957409]
[1719903461676,3.808257,3450.1,3450.0,0.17957409]
[1719903462919,6.706717,3450.1,3450.0,0.17957409]
[1719903465686,9.052017,3450.1,3450.0,0.17957409]
[1719903471093,9.052017,3450.1,3450.0,0.1]
[1719903471491,9.052017,3450.1,3450.0,0.17966324]
[1719903476060,8.14222,3450.1,3450.0,0.17966324]
[1719903476562,5.79692,3450.1,3450.0,0.17966324]
[1719903477371,2.8984,3450.2,3450.0,0.17966324]
[1719903478152,2.89846,3450.1,3450.0,0.17966324]
[1719903481857,2.89837,3450.3,3450.0,0.17966324]
[1719903482057,2.89822,3450.4,3450.0,0.17966324]
[1719903482259,2.8983,3450.3,3450.0,0.17966324]
[1719903483686,2.89818,3450.5,3450.0,2.46656324]
[1719903483835,2.89801,3450.7,3450.0,3.34652892]
[1719903485254,2.89806,3450.6,3450.0,3.34652892]
[1719903486086,5.344,3450.8,3450.0,3.34652892]
[1719903486283,4.03598777,3450.7,3450.0,3.89975877]
[1719903486552,2.89805,3450.6,3450.0,3.89975877]
[1719903491857,2.89805,3450.6,3450.0,3.01979309]
[1719903492083,2.89813,3450.5,3450.0,2.46656324]
[1719903492284,2.89831,3450.3,3450.0,0.17966324]
[1719903493258,2.8984,3450.2,3450.0,0.17966324]
[1719903496714,2.89846,3450.1,3450.0,0.17966324]
[1719903500565,2.89831,3450.3,3450.0,0.17966324]
[1719903502466,2.8984,3450.2,3450.0,0.17966324]
[1719903505208,2.89827,3450.4,3450.0,0.17966324]
[1719903506599,2.89832,3450.3,3450.0,0.17966324]
[1719903512033,2.89816,3450.5,3450.0,0.17966324]
[1719903512190,1.13802923,3450.4,3450.0,0.17966324]
[1719903512385,2.89816,3450.5,3450.0,0.17966324]
[1719903513181,1.13794537,3450.4,3450.0,0.17966324]
[1719903513377,2.89816,3450.5,3450.0,0.17966324]
[1719903513581,1.13800059,3450.4,3450.0,0.17966324]
[1719903513781,2.89816,3450.5,3450.0,0.17966324]
[1719903513983,1.1380107,3450.4,3450.0,0.17966324]
[1719903514209,2.89816,3450.5,3450.0,0.17966324]
[1719903514582,1.13800955,3450.4,3450.0,0.17966324]
[1719903514778,2.89805,3450.6,3450.0,0.17966324]
[1719903515082,2.89793,3450.8,3450.0,4.58006056]
[1719903515296,1.13799629,3450.7,3450.0,4.58006056]
[1719903515514,2.89793,3450.8,3450.0,4.58006056]
[1719903515813,1.13800113,3450.7,3450.0,4.58006056]
[1719903516993,1.13800113,3450.7,3450.2,0.822]
[1719903517192,2.89782,3450.9,3450.2,1.81159561]
[1719903517402,1.13797826,3450.8,3450.3,0.0770459]
[1719903517709,2.89782,3450.9,3450.2,0.822]
[1719903517948,1.13798419,3450.8,3450.4,0.07697283]
[1719903518126,2.89782,3450.9,3450.2,0.822]
[1719903518419,1.13797729,3450.8,3450.5,0.07697283]
[1719903518592,5.39547,3451.0,3450.2,5.98857]
[1719903518791,1.13797724,3450.9,3450.3,0.07697283]
[1719903518998,1.63976157,3450.8,3450.3,0.07697283]
[1719903519221,1.63976157,3450.8,3450.2,5.16657]
[1719903519222,1.63971915,3450.7,3450.2,5.16657]
[1719903519423,1.63973173,3450.6,3450.4,0.07697283]
[1719903519719,0.50178433,3450.5,3450.0,5.49054]
[1719903519926,0.50178433,3450.7,3450.5,0.07697283]
[1719903520249,2.06196805,3450.6,3450.0,5.49054]
[1719903520456,0.50178433,3450.6,3450.0,5.49054]
[1719903520737,0.50178433,3450.5,3450.0,5.49054]
[1719903520951,0.50178433,3450.7,3450.0,5.49054]
[1719903521245,1.13802186,3450.6,3450.0,5.49054]
[1719903521546,0.50182435,3450.5,3450.0,5.49054]
[1719903521830,0.50182435,3450.4,3450.0,5.49054]
[1719903522045,0.50182435,3450.6,3450.0,5.49054]
[1719903523449,1.13801034,3450.5,3450.0,5.49054]
[1719903523742,0.50182435,3450.4,3450.0,5.49054]
[1719903523952,0.50182435,3450.6,3450.0,5.49054]
[1719903524304,2.89796,3450.7,3450.0,5.49054]
[1719903524643,1.63986009,3450.6,3450.1,0.822]
[1719903524850,2.89796,3450.7,3450.1,0.822]
[1719903525019,0.50181801,3450.5,3450.1,0.822]
[1719903525217,1.13801779,3450.6,3450.1,0.822]
[1719903525218,0.50181801,3450.4,3450.1,0.822]
[1719903525450,0.50181801,3450.6,3450.1,0.822]
[1719903525655,0.50181801,3450.5,3450.1,0.822]
[1719903525830,0.50181801,3450.4,3450.1,0.822]
[1719903526019,0.50181801,3450.3,3450.1,0.822]
[1719903526221,0.50181801,3450.2,3450.1,0.822]
[1719903527721,0.50181231,3450.2,3450.1,0.822]
[1719903529927,0.50181231,3450.2,3450.1,0.89641977]
[1719903530960,0.50181008,3450.2,3450.1,0.89641977]
[1719903534151,2.89796,3450.7,3450.1,0.89641977]
[1719903534364,0.50181806,3450.2,3450.1,0.89641977]
[1719903537405,2.89801,3450.7,3450.1,0.89641977]
[1719903537612,0.5018063,3450.2,3450.1,0.89641977]
[1719903537902,2.89801,3450.7,3450.1,0.89641977]
[1719903538113,1.6398259,3450.6,3450.1,0.89641977]
[1719903538319,0.50180667,3450.5,3450.1,0.89641977]
[1719903538519,0.50180667,3450.4,3450.1,1.82498575]
[1719903538674,0.50180667,3450.3,3450.1,1.82498575]
[1719903538875,0.50180667,3450.2,3450.1,1.82498575]
[1719903539070,2.89801,3450.7,3450.1,1.82498575]
[1719903539071,0.50180667,3450.6,3450.1,1.82498575]
[1719903539322,0.50180667,3450.5,3450.1,1.82498575]
[1719903539521,0.50180667,3450.4,3450.1,1.82498575]
[1719903539817,0.50180667,3450.3,3450.1,0.89641977]
[1719903540017,0.50180667,3450.2,3450.1,0.89641977]
[1719903540636,0.50181644,3450.2,3450.1,0.89641977]
[1719903540813,2.89801,3450.7,3450.1,0.89641977]
[1719903541121,1.63983952,3450.6,3450.1,0.89641977]
[1719903541414,0.50181975,3450.5,3450.1,0.89641977]
[1719903541578,0.50181975,3450.4,3450.1,0.89641977]
[1719903541771,0.50181975,3450.3,3450.1,0.89641977]
[1719903541990,0.50181975,3450.6,3450.1,1.82498575]
[1719903542187,0.50181975,3450.5,3450.1,0.89641977]
[1719903542488,0.50181975,3450.4,3450.1,0.89641977]
[1719903542689,0.50181975,3450.3,3450.1,0.89641977]
[1719903542890,0.50181975,3450.2,3450.1,0.89641977]
[1719903543082,0.50180958,3450.2,3450.1,1.82498575]
[1719903545799,0.50180958,3450.2,3450.1,0.07441977]
[1719903546492,0.50182834,3450.2,3450.1,0.07441977]
[1719903549123,0.50182834,3450.2,3450.1,3.79487977]
[1719903549519,2.2976,3450.9,3450.2,2.89837]
[1719903549719,1.63975575,3450.8,3450.4,0.822]
[1719903549917,0.50176982,3450.7,3450.4,0.822]
[1719903550110,0.50177009,3450.6,3450.5,0.0744325]
[1719903552700,0.50176567,3450.6,3450.5,0.0744325]
[1719903553016,0.50176617,3450.8,3450.5,0.0744325]
[1719903553216,0.50176617,3450.7,3450.5,0.0744325]
[1719903553416,0.50176617,3450.6,3450.5,0.0744325]
[1719903556239,0.50176569,3450.6,3450.5,0.0744325]
[1719903559436,0.5017631,3450.6,3450.5,0.0744325]
[1719903562713,0.50176291,3450.6,3450.5,0.0744325]
[1719903565850,0.5017748,3450.6,3450.2,3.72036]
[1719903566057,2.89779,3450.9,3450.5,0.07435624]
[1719903566345,1.63955019,3450.8,3450.6,0.07435624]
[1719903566650,0.50177483,3450.7,3450.2,3.72036]
[1719903566850,0.50177483,3450.6,3450.2,3.72036]
[1719903567152,0.50177483,3450.5,3450.2,3.72036]
[1719903567346,0.50177483,3450.8,3450.2,3.72036]
[1719903567528,0.50177483,3450.8,3450.2,4.641448]
[1719903567726,0.50177483,3450.8,3450.2,3.72036]
[1719903568051,2.89779,3450.9,3450.2,3.72036]
[1719903568641,1.63955476,3450.8,3450.2,3.72036]
[1719903569721,0.50177536,3450.7,3450.2,3.72036]
[1719903569919,0.50177536,3450.6,3450.2,3.72036]
[1719903570119,0.50177536,3450.8,3450.2,3.72036]
[1719903570548,0.50177845,3450.7,3450.2,3.72036]
[1719903570846,0.50177845,3450.6,3450.2,3.72036]
[1719903571053,0.50177845,3450.5,3450.2,0.822]
[1719903571355,0.50177845,3450.4,3450.1,0.822]
[1719903571519,0.50177845,3450.3,3450.1,0.822]
[1719903571721,0.50177845,3450.5,3450.0,0.922]
[1719903572022,0.50177845,3450.4,3450.0,0.922]
[1719903572218,0.50177845,3450.5,3450.0,0.922]
[1719903573749,0.5018024,3450.4,3450.0,0.922]
[1719903574046,0.5018024,3450.3,3450.0,0.922]
[1719903574226,0.5018024,3450.2,3450.0,1.840049]
[1719903574425,0.50180247,3450.1,3450.0,1.840049]
[1719903574627,0.50180247,3450.1,3450.0,0.922]
[1719903574938,0.50180247,3450.1,3450.0,0.99632765]
[1719903575327,0.50180247,3450.1,3450.0,3.89487765]
[1719903575672,2.89792,3450.8,3450.2,2.2994]
[1719903575855,5.20252,3451.0,3450.2,2.2994]
[1719903575856,0.50174783,3450.7,3450.3,3.58141144]
[1719903576034,5.20626,3451.3,3450.6,6.02568]
[1719903576373,2.89737,3451.4,3451.1,0.822]
[1719903576374,0.50172146,3451.2,3451.1,0.822]
[1719903576832,2.89737,3451.4,3451.1,0.822]
[1719903577034,0.50165968,3451.2,3451.1,0.89556369]
[1719903577238,2.89737,3451.4,3451.1,0.89556369]
[1719903577560,0.50167772,3451.3,3451.1,0.07356369]
[1719903577766,0.50167772,3451.3,3450.9,0.822]
[1719903577933,0.50167772,3451.3,3451.2,0.07356369]
[1719903578140,0.50167772,3451.3,3450.9,0.822]
[1719903578437,0.50167772,3451.3,3451.2,0.07356369]
[1719903578646,0.50167772,3451.3,3450.9,0.822]
[1719903578841,0.50167772,3451.3,3451.2,0.07356369]
[1719903579489,0.50167772,3451.3,3450.9,0.822]
[1719903579634,5.20604,3451.6,3451.2,0.07356369]
[1719903579835,5.808844,3451.6,3451.2,0.07356369]
[1719903580056,0.50167866,3451.5,3450.9,0.822]
[1719903580271,5.20604,3451.6,3451.3,0.07356369]
[1719903580567,0.50168124,3451.5,3451.4,0.07334455]
[1719903580769,0.50168124,3451.5,3450.9,0.822]
[1719903581075,0.50168124,3451.5,3451.4,0.07334455]
[1719903581275,0.50168124,3451.5,3451.0,2.89769]
[1719903581493,0.50168124,3451.5,3451.4,0.07334455]
[1719903581638,1.07243936,3451.5,3451.0,2.89769]
[1719903581967,0.50168124,3451.4,3451.1,0.07334455]
[1719903582143,0.50168124,3451.3,3451.1,2.97095455]
[1719903582344,0.50168124,3451.2,3451.1,2.97095455]
[1719903582546,0.50168124,3451.2,3451.1,3.64001901]
[1719903582952,0.50167319,3451.2,3451.1,3.64001901]
[1719903585273,0.50167319,3451.2,3451.1,0.74240901]
[1719903585449,0.50167319,3451.2,3451.1,0.07334455]
[1719903586571,0.50169923,3451.2,3451.1,0.07334455]
[1719903589675,2.3088,3451.6,3451.1,0.07334455]
[1719903589865,0.50168452,3451.5,3451.1,0.07334455]
[1719903590067,0.50168452,3451.4,3451.1,0.07334455]
[1719903590372,0.50168439,3451.3,3451.1,0.07334455]
[1719903590570,0.50168439,3451.2,3451.1,0.07334455]
[1719903590737,0.50168439,3451.5,3451.1,0.07334455]
[1719903591844,0.50168186,3451.4,3451.1,0.07334455]
[1719903592045,0.50168186,3451.3,3451.1,0.07334455]
[1719903592245,0.50168186,3451.5,3451.1,0.07334455]
[1719903592978,0.50168655,3451.4,3451.1,0.07334455]
[1719903593189,0.5016782,3451.3,3451.1,0.07334455]
[1719903593377,0.5016782,3451.2,3451.1,0.07334455]
[1719903593588,0.5016782,3451.5,3451.1,0.07334455]
[1719903596084,2.3088,3451.6,3451.1,0.07334455]
[1719903596378,0.50168616,3451.5,3451.1,0.07334455]
[1719903596578,0.50168616,3451.4,3451.1,0.07334455]
[1719903596792,0.50168616,3451.3,3451.1,0.07334455]
[1719903596951,0.50168616,3451.2,3451.1,0.07334455]
[1719903597902,0.50168616,3451.2,3451.1,3.79296455]
[1719903598045,0.50166791,3451.2,3451.1,4.46782089]
[1719903598246,3.0,3451.8,3451.1,4.46782089]
[1719903598449,0.50165146,3451.7,3451.1,3.79296455]
[1719903598649,0.50165146,3451.6,3451.1,3.79296455]
[1719903598883,0.50165146,3451.7,3451.1,3.79296455]
[1719903599079,0.50165146,3451.6,3451.2,2.89752]
[1719903599379,3.0,3451.8,3451.3,0.07329692]
[1719903599585,2.2524,3452.0,3451.3,3.71943]
[1719903599586,0.50164986,3451.7,3451.3,3.71943]
[1719903599767,2.2524,3452.0,3451.3,3.71943]
[1719903599768,0.50164986,3451.6,3451.4,0.07329692]
[1719903600084,0.50164986,3451.5,3451.4,0.07329692]
[1719903601905,2.89697,3451.9,3451.4,0.07329692]
[1719903602117,0.5016558,3451.5,3451.4,0.07329692]
[1719903602574,0.50165723,3451.5,3451.4,0.07329692]
[1719903603219,0.50165723,3451.8,3451.4,0.07329692]
[1719903603408,0.50165723,3451.5,3451.4,0.07329692]
[1719903605063,0.50165735,3451.5,3451.4,0.07329692]
[1719903605666,2.89704,3451.8,3451.4,0.07329692]
[1719903605667,0.50165799,3451.7,3451.4,0.07329692]
[1719903607966,0.50165799,3451.9,3451.4,0.07329692]
[1719903608168,0.50164788,3451.8,3451.4,0.07329692]
[1719903608610,0.50164788,3451.7,3451.4,0.07329692]
[1719903608779,5.34207,3452.0,3451.4,0.07329692]
[1719903608780,0.50164788,3451.6,3451.4,0.07329692]
[1719903608984,0.50164788,3451.5,3451.4,0.07329692]
[1719903611537,0.50166244,3451.5,3451.4,0.07329692]
[1719903614740,0.50166148,3451.5,3451.4,0.07329692]
[1719903615241,0.50166014,3451.5,3451.4,0.07329692]
[1719903617628,0.50166014,3451.5,3451.2,2.89749]
[1719903617820,2.89705,3451.8,3451.4,0.07286065]
[1719903618026,0.50166107,3451.7,3451.2,2.89749]
[1719903618326,0.50166107,3451.6,3451.3,0.07286065]
[1719903618853,0.50166107,3451.5,3451.2,2.89749]
[1719903619028,0.50166107,3451.4,3451.2,2.89749]
[1719903619213,2.89705,3451.8,3451.3,0.07286065]
[1719903619542,1.63927914,3451.7,3451.2,2.89749]
[1719903619701,0.50167319,3451.6,3451.2,2.89749]
[1719903619906,0.50167319,3451.5,3451.3,0.07286065]
[1719903620101,0.50167319,3451.4,3451.2,2.89749]
[1719903620343,0.50167319,3451.3,3451.0,6.04933]
[1719903620657,0.50167319,3451.2,3451.1,0.894709]
[1719903620823,0.50167319,3451.2,3451.0,6.04933]
[1719903621144,5.79417,3451.8,3451.0,2.3297]
[1719903621145,0.50166399,3451.1,3451.0,2.3297]
[1719903621352,0.50166399,3451.1,3450.9,5.79549]
[1719903621647,0.50166399,3451.0,3450.9,2.89773]
[1719903621844,0.50166399,3451.4,3450.9,3.804935]
[1719903622043,0.50166399,3451.4,3450.4,2.364]
[1719903622244,2.89772,3451.0,3450.2,5.26233]
[1719903622542,0.50166399,3450.9,3450.3,2.89828]
[1719903623329,0.50166399,3450.9,3450.3,3.72028]
[1719903624348,0.50176641,3450.8,3450.3,3.72028]
[1719903624647,0.50176641,3450.7,3450.4,0.898267]
[1719903624949,0.50176641,3450.6,3450.4,0.898267]
[1719903625111,0.50176641,3450.9,3450.4,0.898267]
[1719903625445,0.50176641,3450.9,3450.3,3.72028]
[1719903626654,3.39956641,3450.9,3450.2,2.364]
[1719903626808,0.50176641,3450.8,3450.2,3.186]
[1719903627234,0.50176641,3450.8,3450.2,6.08438]
[1719903627433,2.8978,3450.9,3450.2,6.08438]
[1719903627618,0.5017756,3450.8,3450.2,6.08438]
[1719903627808,2.8978,3450.9,3450.2,7.292671]
[1719903628037,0.50177459,3450.8,3450.2,7.292671]
[1719903628345,0.50177459,3450.7,3450.2,7.292671]
[1719903628546,0.50177459,3450.6,3450.2,7.292671]
[1719903628750,0.50177459,3450.8,3450.2,7.292671]
[1719903629853,0.50177619,3450.7,3450.2,7.292671]
[1719903630063,0.50177619,3450.6,3450.3,0.39601184]
[1719903630210,2.8978,3450.9,3450.3,0.39601184]
[1719903630414,2.8978,3450.9,3450.2,7.292671]
[1719903630415,0.50177591,3450.8,3450.2,7.292671]
[1719903630635,2.89772,3451.0,3450.2,2.364]
[1719903630636,2.89805,3450.6,3450.2,2.364]
[1719903630833,3.2577,3450.6,3450.0,0.1]
[1719903631148,0.50184091,3450.5,3450.0,0.1]
[1719903631320,3.2577,3450.6,3450.0,0.1]
[1719903631321,0.50184091,3450.4,3450.0,0.1]
[1719903631515,0.50184091,3450.3,3450.0,0.1]
[1719903631718,0.50184091,3450.5,3450.0,0.1]
[1719903631952,2.8983,3450.3,3450.0,0.1]
[1719903632132,0.50184091,3450.2,3450.0,0.1]
[1719903633854,2.8983,3450.3,3450.0,0.1]
[1719903636822,2.8983,3450.3,3450.1,0.07108297]
[1719903637935,2.89822,3450.4,3450.1,0.07108297]
[1719903639550,2.89813,3450.5,3450.1,0.07108297]
[1719903639764,3.40005344,3450.4,3450.1,0.07108297]
[1719903640054,2.89821,3450.4,3450.1,0.07108297]
[1719903640966,2.89785,3450.9,3450.2,2.3648]
[1719903641145,2.89785,3450.9,3450.3,1.08138513]
[1719903641343,0.50180557,3450.8,3450.3,1.08138513]
[1719903641527,2.89764,3451.1,3450.4,0.07108297]
[1719903641850,3.50176233,3451.0,3450.4,1.00828708]
[1719903642054,0.50176233,3450.9,3450.4,1.00828708]
[1719903642227,0.50176233,3450.8,3450.4,1.00828708]
[1719903642588,5.89772,3451.0,3450.4,1.00828708]
[1719903642857,0.50176251,3450.9,3450.4,1.00828708]
[1719903643185,0.50176251,3450.8,3450.4,1.00828708]
[1719903643381,0.50176251,3450.9,3450.4,1.00828708]
[1719903643671,0.50176275,3450.8,3450.4,1.00828708]
[1719903643875,2.89772,3451.0,3450.5,0.73528422]
[1719903644068,0.5017624,3450.9,3450.5,3.63340422]
[1719903644283,5.26556,3451.3,3450.6,3.175]
[1719903644439,0.50172902,3451.2,3450.6,3.24608297]
[1719903644622,0.50172902,3451.1,3450.6,2.42408297]
[1719903644823,5.26556,3451.3,3450.6,2.42408297]
[1719903644824,0.50172902,3451.0,3450.6,2.42408297]
[1719903645045,6.08756,3451.3,3450.6,2.42408297]
[1719903645285,0.501718,3451.2,3450.6,2.42408297]
[1719903645448,0.501718,3451.1,3450.6,2.42408297]
[1719903645796,6.08756,3451.3,3450.6,2.42408297]
[1719903645797,0.501718,3451.0,3450.6,2.42408297]
[1719903645984,2.89756,3451.2,3450.6,2.42408297]
[1719903645985,0.501718,3451.1,3450.6,2.42408297]
[1719903646519,0.50173712,3451.0,3450.6,2.42408297]
[1719903646860,2.89756,3451.2,3450.6,2.42408297]
[1719903646861,0.50173712,3450.9,3450.6,2.42408297]
[1719903647053,2.89756,3451.2,3450.6,2.42408297]
[1719903647229,0.50172866,3451.1,3450.6,2.42408297]
[1719903647455,0.50172866,3451.0,3450.6,2.42408297]
[1719903647630,1.32372866,3451.1,3450.6,0.07108297]
[1719903647830,0.50172866,3451.0,3450.6,0.07108297]
[1719903648054,0.50172866,3451.0,3450.3,5.31843]
[1719903648539,0.50172866,3451.0,3450.4,2.96903607]
[1719903648740,0.50172866,3451.0,3450.5,3.72012]
[1719903649058,0.50172866,3450.9,3450.5,3.72012]
[1719903649365,2.3681,3451.3,3450.6,0.98761735]
[1719903649366,0.50172866,3450.8,3450.6,0.98761735]
[1719903649565,0.50172866,3450.8,3450.6,0.07088607]
[1719903649778,2.89759,3451.2,3450.6,0.07088607]
[1719903650072,0.50173015,3451.1,3450.6,0.07088607]
[1719903650264,0.50173015,3451.0,3450.6,0.07088607]
[1719903650472,0.50173015,3450.9,3450.6,0.07088607]
[1719903650762,0.50173015,3450.8,3450.6,0.98182168]
[1719903650974,2.89759,3451.2,3450.6,0.98182168]
[1719903651174,0.50173701,3451.1,3450.6,0.07088607]
[1719903651475,0.50173701,3451.0,3450.6,0.07088607]
[1719903651773,0.50173701,3451.1,3450.6,0.07088607]
[1719903651979,0.50173701,3451.0,3450.6,0.07088607]
[1719903652152,0.50173701,3450.9,3450.8,2.89787]
[1719903652354,5.27278,3451.7,3450.9,3.71974]
[1719903652558,2.05465787,3451.6,3450.9,3.71974]
[1719903652777,0.50167387,3451.6,3450.9,3.71974]
[1719903652967,0.50166101,3451.5,3451.0,0.07071774]
[1719903653279,0.50166101,3451.4,3451.0,0.07071774]
[1719903653494,0.5016608,3451.3,3451.0,2.96840774]
[1719903653698,5.27278,3451.7,3451.0,2.96840774]
[1719903653863,1.31864686,3451.6,3451.0,2.96840774]
[1719903654065,0.50166286,3451.5,3451.0,2.96840774]
[1719903654475,0.50166286,3451.6,3451.0,2.96840774]
[1719903656009,0.50167121,3451.5,3451.0,2.96840774]
[1719903656306,0.50167121,3451.4,3451.0,2.96840774]
[1719903656697,0.50167121,3451.3,3451.0,2.96840774]
[1719903657003,5.27278,3451.7,3451.0,2.96840774]
[1719903657166,0.50166279,3451.6,3451.1,0.66881477]
[1719903657367,0.50166279,3451.5,3451.0,2.96840774]
[1719903657564,0.50166279,3451.6,3451.0,2.95564002]
[1719903657766,3.39871279,3451.8,3451.3,0.822]
[1719903657990,3.39878279,3451.7,3451.1,3.20450024]
[1719903658176,0.50166279,3451.6,3451.1,2.3119]
[1719903658386,0.50166279,3451.6,3451.2,0.07060024]
[1719903658898,0.50166279,3451.6,3451.3,0.07046052]
[1719903659098,1.21344607,3451.6,3451.0,2.89769]
[1719903659271,3.71912,3451.7,3451.1,0.07046052]
[1719903659478,0.50168957,3451.6,3451.1,0.07046052]
[1719903659683,0.50168957,3451.5,3451.1,0.07046052]
[1719903659882,0.50168957,3451.4,3451.1,0.07046052]
[1719903660192,0.50168957,3451.5,3451.1,0.07046052]
[1719903660507,0.50168957,3451.4,3451.1,0.07046052]
[1719903660707,0.50168957,3451.3,3451.1,0.07046052]
[1719903660867,0.50168957,3451.3,3450.3,2.3924]
[1719903660868,2.89754,3451.2,3450.3,2.3924]
[1719903661074,3.71973,3451.0,3450.4,0.07046052]
[1719903661314,2.89794,3450.8,3450.4,0.07046052]
[1719903661627,2.89794,3450.8,3450.0,2.4221]
[1719903661628,0.822,3450.5,3450.0,0.1]
[1719903662207,0.50181468,3450.4,3450.0,0.1]
[1719903662894,0.50181468,3450.3,3450.0,0.1]
[1719903663204,2.89813,3450.5,3450.0,0.1]
[1719903663500,0.50184749,3450.4,3450.0,0.1]
[1719903663690,0.50184749,3450.3,3450.0,0.1]
[1719903663885,2.89824,3450.4,3450.0,0.1]
[1719903664088,0.50184509,3450.3,3450.0,0.1]
[1719903664271,2.89824,3450.4,3450.0,0.1]
[1719903664471,0.50184534,3450.3,3450.0,0.1]
[1719903664684,2.89824,3450.4,3450.0,0.1]
[1719903664969,0.50184539,3450.3,3450.0,0.1]
[1719903665170,2.89824,3450.4,3450.0,0.1]
[1719903665369,0.50184507,3450.3,3450.0,0.1]
[1719903665596,2.89824,3450.4,3450.0,0.1]
[1719903665923,3.4002153,3450.3,3450.0,0.1]
[1719903666119,0.5018453,3450.2,3450.0,0.1]
[1719903666324,3.4002253,3450.2,3450.0,0.1]
[1719903666628,2.89838,3450.2,3450.0,0.1]
[1719903666773,2.89838,3450.2,3450.1,0.07046052]
[1719903666979,3.40024547,3450.2,3450.1,0.07046052]
[1719903667715,2.89838,3450.2,3450.1,0.07046052]
[1719903667914,3.40024497,3450.2,3450.1,0.07046052]
[1719903668218,3.40024579,3450.2,3450.1,0.07046052]
[1719903669619,3.40024579,3450.2,3450.0,0.1]
[1719903669787,2.89838,3450.2,3450.1,0.07113064]
[1719903669987,3.40024554,3450.2,3450.0,0.1]
[1719903670211,2.89838,3450.2,3450.0,0.1]
[1719903670412,2.89838,3450.2,3450.1,0.07113064]
[1719903670688,3.40024555,3450.2,3450.1,0.07113064]
[1719903671023,2.89838,3450.2,3450.1,0.07113064]
[1719903671316,3.4002461,3450.2,3450.1,0.07113064]
[1719903671897,3.4002461,3450.2,3450.0,0.1]
[1719903672099,2.89838,3450.2,3450.0,0.1]
[1719903672418,2.89838,3450.2,3450.1,0.07113064]
[1719903672586,3.40024982,3450.2,3450.1,0.07113064]
[1719903674223,3.4002653,3450.2,3450.1,0.07113064]
[1719903675525,3.4002653,3450.2,3450.0,0.1]
[1719903675526,4.05294528,3450.2,3450.0,0.1]
[1719903675705,3.4003453,3450.1,3450.0,0.1]
[1719903677328,2.89846,3450.1,3450.0,0.1]
[1719903677533,3.40036434,3450.1,3450.0,0.1]
[1719903677833,6.52298125,3450.1,3450.0,0.1]
[1719903678005,7.02489306,3450.1,3450.0,0.1]
[1719903680250,6.29883181,3450.1,3450.0,0.1]
[1719903680810,5.79692,3450.1,3450.0,0.1]
[1719903681012,6.29883147,3450.1,3450.0,0.1]
[1719903681816,6.29883147,3450.1,3450.0,0.17113064]
[1719903683842,6.298827,3450.1,3450.0,0.17113064]
[1719903684365,3.400367,3450.1,3450.0,0.17113064]
[1719903687162,3.40034636,3450.1,3450.0,0.17113064]
[1719903689984,2.89846,3450.1,3450.0,0.17113064]
[1719903690175,3.40036023,3450.1,3450.0,0.17113064]
[1719903690490,3.40036149,3450.1,3450.0,0.17113064]
[1719903690862,2.89846,3450.1,3450.0,0.17113064]
[1719903691069,3.40036598,3450.1,3450.0,0.17113064]
[1719903693571,3.40036797,3450.1,3450.0,0.17113064]
[1719903693779,3.40036211,3450.1,3450.0,0.17113064]
[1719903696804,3.40035898,3450.1,3450.0,0.17113064]
[1719903697650,3.99311399,3450.1,3450.0,0.17113064]
[1719903699991,2.89846,3450.1,3450.0,0.17113064]
[1719903700199,3.99311644,3450.1,3450.0,0.17113064]
[1719903700909,6.89157644,3450.1,3450.0,0.17113064]
[1719903701353,6.89157644,3450.1,3450.0,0.1]
[1719903703292,6.2988289,3450.1,3450.0,0.1]
[1719903703602,6.89159585,3450.1,3450.0,0.1]
[1719903703811,5.79692,3450.1,3450.0,0.1]
[1719903703960,6.89161135,3450.1,3450.0,0.1]
[1719903704154,8.66487916,3450.1,3450.0,0.1]
[1719903706060,5.79692,3450.1,3450.0,0.1]
[1719903706388,6.895313,3450.1,3450.0,0.1]
[1719903708013,12.18157948,3450.1,3450.0,0.1]
[1719903710368,13.00357948,3450.1,3450.0,0.1]
[1719903710799,10.63814147,3450.1,3450.0,0.1]
[1719903711115,13.003414,3450.1,3450.0,0.1]
[1719903714182,13.00345761,3450.1,3450.0,0.1]
[1719903714716,13.00346774,3450.1,3450.0,0.1]
[1719903715266,13.00346703,3450.1,3450.0,0.1]
[1719903717263,10.136213,3450.1,3450.0,0.1]
[1719903717466,13.00374285,3450.1,3450.0,0.1]
[1719903719316,15.90220285,3450.1,3450.0,0.1]
[1719903720608,13.53663803,3450.1,3450.0,0.1]
[1719903720795,17.0433394,3450.1,3450.0,0.1]
[1719903721966,14.1448794,3450.1,3450.0,0.1]
[1719903722356,17.0433394,3450.1,3450.0,0.1]
[1719903722818,13.3228794,3450.1,3450.0,0.1]
[1719903722983,14.1448794,3450.1,3450.0,0.1]
[1719903723184,11.27718435,3450.1,3450.0,0.1]
[1719903723496,13.00389177,3450.1,3450.0,0.1]
[1719903724068,12.18189177,3450.1,3450.0,0.1]
[1719903724372,9.76299177,3450.1,3450.0,0.1]
[1719903726364,6.895313,3450.1,3450.0,0.1]
[1719903726566,9.76294695,3450.1,3450.0,0.1]
[1719903727009,9.76299081,3450.1,3450.0,0.1]
[1719903728967,10.58499081,3450.1,3450.0,0.1]
[1719903729669,8.21924745,3450.1,3450.0,0.1]
[1719903729964,9.49035096,3450.1,3450.0,0.1]
[1719903730169,10.58499894,3450.1,3450.0,0.1]
[1719903730590,9.76299894,3450.1,3450.0,0.1]
[1719903730787,9.76299894,3450.1,3450.0,0.17143248]